bitfinex/quotes_BTCUSD_20251114
["timestamp","ask_amount","ask_price","bid_price","bid_amount"]
[1763081375977,0.01856059,99063.0,99050.0,0.20191801]
[1763081376178,0.01856059,99062.0,99048.0,0.09816915]
[1763081376390,0.01856059,99061.0,99048.0,0.09816915]
[1763081376660,0.01856059,99060.0,99048.0,0.09816915]
[1763081376943,0.00208336,99064.0,99048.0,0.09816915]
[1763081376944,0.01856059,99059.0,99048.0,0.09816915]
[1763081377123,0.01856059,99058.0,99048.0,0.09816915]
[1763081377328,0.0286224,99057.0,99048.0,0.09816915]
[1763081377525,0.00208336,99064.0,99049.0,0.20191954]
[1763081377526,0.01856059,99056.0,99049.0,0.20191954]
[1763081377732,0.01856059,99055.0,99048.0,0.09816915]
[1763081377935,0.00208336,99064.0,99048.0,0.09816915]
[1763081377936,0.01856059,99054.0,99048.0,0.09816915]
[1763081378146,0.01856059,99053.0,99048.0,0.09816915]
[1763081378374,0.0186076,99052.0,99048.0,0.09816915]
[1763081378572,0.00208336,99064.0,99048.0,0.09816915]
[1763081378796,0.22050251,99063.0,99048.0,0.09816915]
[1763081379049,0.24276384,99062.0,99048.0,0.09916915]
[1763081379174,0.20189827,99060.0,99048.0,0.09916915]
[1763081379377,0.01861079,99059.0,99048.0,0.09816915]
[1763081379599,0.01861079,99058.0,99048.0,0.09816915]
[1763081379806,0.22415324,99062.0,99048.0,0.30008941]
[1763081379807,0.01861079,99057.0,99048.0,0.30008941]
[1763081380004,0.01861079,99056.0,99055.0,0.20190803]
[1763081380589,0.00208336,99064.0,99048.0,0.09816915]
[1763081380590,0.00208336,99064.0,99062.0,0.20189376]
[1763081380786,0.00208336,99064.0,99063.0,0.15205915]
[1763081380967,0.02070233,99064.0,99055.0,0.09816915]
[1763081381173,0.01861897,99063.0,99055.0,0.09816915]
[1763081381390,0.01861897,99062.0,99057.0,0.2019032]
[1763081381591,0.01861897,99061.0,99055.0,0.30007709]
[1763081381982,0.01861897,99060.0,99055.0,0.09816915]
[1763081382182,0.0408778,99059.0,99055.0,0.09816915]
[1763081382397,0.01861897,99058.0,99055.0,0.09916915]
[1763081382610,0.01861897,99057.0,99055.0,0.09816915]
[1763081382807,0.00208336,99064.0,99055.0,0.09916915]
[1763081382982,0.20190091,99059.0,99055.0,0.10016915]
[1763081383195,0.01861533,99058.0,99055.0,0.09916915]
[1763081383561,0.24277927,99057.0,99055.0,0.09816915]
[1763081383746,0.22416394,99057.0,99055.0,0.09816915]
[1763081383940,0.0186153,99056.0,99055.0,0.09816915]
[1763081384567,0.0186153,99056.0,99055.0,0.09916915]
[1763081385230,0.0186153,99056.0,99055.0,0.09816915]
[1763081385641,0.0186153,99056.0,99055.0,0.09916915]
[1763081385817,0.0186153,99056.0,99055.0,0.001]
[1763081386054,0.04066668,99056.0,99055.0,0.001]
[1763081386433,0.0186153,99056.0,99055.0,0.001]
[1763081387261,0.3416153,99056.0,99055.0,0.001]
[1763081387436,0.36308127,99056.0,99055.0,0.001]
[1763081387644,0.36308127,99056.0,99029.0,0.3001299]
[1763081387994,0.20191674,99051.0,99047.0,0.09816915]
[1763081388132,0.2019208,99049.0,99047.0,0.09816915]
[1763081388328,0.0186153,99048.0,99047.0,0.09816915]
[1763081389598,0.0186153,99048.0,99047.0,0.09916915]
[1763081389785,0.01865525,99048.0,99047.0,0.09916915]
[1763081390292,0.2019208,99049.0,99047.0,0.09916915]
[1763081390592,0.28311178,99049.0,99047.0,0.10016915]
[1763081391238,0.08119098,99049.0,99047.0,0.09916915]
[1763081391511,0.08119098,99049.0,99047.0,0.09816915]
[1763081391738,0.02680528,99067.0,99047.0,0.30209145]
[1763081391970,0.00933844,99063.0,99048.0,0.07852]
[1763081392195,0.02151601,99070.0,99062.0,0.09816915]
[1763081392429,0.02680528,99074.0,99062.0,0.09816915]
[1763081392677,0.02151601,99073.0,99062.0,0.30006169]
[1763081392912,0.02680528,99075.0,99062.0,0.30006169]
[1763081392913,0.02151601,99072.0,99062.0,0.30006169]
[1763081393149,0.323,99078.0,99062.0,0.30006169]
[1763081393150,0.02151601,99074.0,99062.0,0.30006169]
[1763081393411,0.02151601,99075.0,99062.0,0.09816915]
[1763081393665,0.22338147,99076.0,99062.0,0.09816915]
[1763081393950,0.22338478,99075.0,99062.0,0.09816915]
[1763081394201,0.20190212,99058.0,99047.0,0.09816915]
[1763081394444,0.02133268,99057.0,99047.0,0.09816915]
[1763081394710,0.02133268,99057.0,99054.0,0.20190816]
[1763081394964,0.20188165,99068.0,99047.0,0.09816915]
[1763081395212,0.02152715,99067.0,99050.0,0.20191778]
[1763081395452,0.02152715,99067.0,99052.0,0.20191411]
[1763081395670,0.02152715,99067.0,99062.0,0.09816915]
[1763081395876,0.20188171,99068.0,99062.0,0.09816915]
[1763081396087,0.2018879,99065.0,99048.0,0.07852]
[1763081396219,0.02254984,99063.0,99047.0,0.09916915]
[1763081396642,0.20191332,99053.0,99048.0,0.09816915]
[1763081396842,0.00208336,99064.0,99048.0,0.09816915]
[1763081397076,0.20191922,99050.0,99048.0,0.09816915]
[1763081397277,0.00208336,99064.0,99048.0,0.09816915]
[1763081397479,0.2019138,99053.0,99048.0,0.09816915]
[1763081397683,0.24229677,99052.0,99048.0,0.09816915]
[1763081397888,0.04038238,99052.0,99048.0,0.09916915]
[1763081398086,0.20189172,99063.0,99048.0,0.09916915]
[1763081398087,0.323,99066.0,99048.0,0.10016915]
[1763081398429,0.02153617,99065.0,99048.0,0.09916915]
[1763081398601,0.02153617,99065.0,99045.0,0.09816915]
[1763081398801,0.00934909,99063.0,99045.0,0.09816915]
[1763081399009,0.2018958,99061.0,99045.0,0.09816915]
[1763081399209,0.20191682,99051.0,99045.0,0.09816915]
[1763081399920,0.20191335,99053.0,99048.0,0.001]
[1763081400084,0.02133283,99060.0,99048.0,0.001]
[1763081400289,0.323,99069.0,99048.0,0.001]
[1763081400290,0.02362522,99064.0,99048.0,0.001]
[1763081400496,0.00208336,99064.0,99054.0,0.20190814]
[1763081400702,0.00208336,99064.0,99048.0,0.001]
[1763081400908,0.00208336,99064.0,99063.0,0.0372]
[1763081401108,0.00208336,99064.0,99045.0,0.09816915]
[1763081401330,0.03942641,99064.0,99060.0,0.09816915]
[1763081401548,0.03942641,99064.0,99045.0,0.09916915]
[1763081401778,0.03942641,99064.0,99045.0,0.09816915]
[1763081401989,0.01869678,99063.0,99060.0,0.09816915]
[1763081402187,0.00208336,99064.0,99045.0,0.09816915]
[1763081402188,0.01869678,99062.0,99045.0,0.09816915]
[1763081402390,0.20189921,99060.0,99045.0,0.09816915]
[1763081402592,0.20189262,99063.0,99045.0,0.09816915]
[1763081402793,0.04022227,99062.0,99060.0,0.09816915]
[1763081403004,0.00208336,99064.0,99060.0,0.09816915]
[1763081403644,0.00208336,99064.0,99052.0,0.20191354]
[1763081404077,0.00208336,99064.0,99050.0,0.20191663]
[1763081404308,0.20189172,99063.0,99045.0,0.09816915]
[1763081404501,0.2018978,99061.0,99045.0,0.09816915]
[1763081404707,0.05485074,99062.0,99045.0,0.09816915]
[1763081405021,0.00208336,99064.0,99063.0,0.20189172]
[1763081405244,0.00208336,99064.0,99063.0,0.0524]
[1763081405444,0.00208336,99064.0,99063.0,0.13178]
[1763081405640,0.00208336,99064.0,99062.0,0.20189337]
[1763081406202,0.00208336,99064.0,99063.0,0.07938]
[1763081407240,0.00408336,99064.0,99063.0,0.07938]
[1763081407775,0.00608336,99064.0,99063.0,0.07938]
[1763081408444,0.323,99089.0,99088.0,0.20184078]
[1763081408642,0.323,99089.0,99073.0,0.20187134]
[1763081408801,0.323,99089.0,99087.0,0.09816915]
[1763081409005,0.20184364,99087.0,99082.0,0.09816915]
[1763081409221,0.323,99091.0,99082.0,0.09816915]
[1763081409631,0.3234591,99091.0,99082.0,0.09816915]
[1763081410255,0.0004591,99091.0,99089.0,0.20183821]
[1763081410458,0.0004591,99091.0,99090.0,0.08602]
[1763081410899,0.0004591,99091.0,99090.0,0.16155]
[1763081411104,0.0004591,99091.0,99090.0,0.11319]
[1763081411306,0.0004591,99091.0,99090.0,0.03766]
[1763081411546,0.02155243,99110.0,99099.0,0.20181822]
[1763081411663,0.323,99116.0,99099.0,0.20195651]
[1763081411871,0.01870954,99115.0,99105.0,0.09816915]
[1763081412076,0.323,99113.0,99099.0,0.00013829]
[1763081412280,0.20180081,99108.0,99100.0,0.09816915]
[1763081412482,0.20180474,99106.0,99100.0,0.09816915]
[1763081412684,0.20180681,99105.0,99100.0,0.09816915]
[1763081412884,0.323,99100.0,99099.0,0.00013829]
[1763081413294,0.4177005,99100.0,99099.0,0.00013829]
[1763081413958,0.4177005,99100.0,99099.0,0.00113829]
[1763081414517,0.4177005,99100.0,99099.0,0.00013829]
[1763081414742,0.34263404,99100.0,99099.0,0.00013829]
[1763081414948,0.3708287,99100.0,99099.0,0.00013829]
[1763081415496,0.35212719,99100.0,99099.0,0.00013829]
[1763081416120,0.32393253,99100.0,99099.0,0.00013829]
[1763081416689,0.00093253,99100.0,99099.0,0.00013829]
[1763081416889,0.32393253,99100.0,99099.0,0.00013829]
[1763081418553,0.01871986,99100.0,99099.0,0.00013829]
[1763081418914,0.20181588,99101.0,99099.0,0.00013829]
[1763081419092,0.2018127,99102.0,99099.0,0.00013829]
[1763081419265,0.44066612,99110.0,99099.0,0.00013829]
[1763081419467,0.20180546,99106.0,99099.0,0.00013829]
[1763081419696,0.01872096,99105.0,99099.0,0.00013829]
[1763081419840,0.01872096,99104.0,99099.0,0.00013829]
[1763081420075,0.20177831,99119.0,99103.0,0.2018097]
[1763081420286,0.45075388,99130.0,99100.0,0.09816915]
[1763081420287,0.04926921,99118.0,99100.0,0.09816915]
[1763081420476,0.09816915,99129.0,99100.0,0.09816915]
[1763081420477,0.20180445,99106.0,99100.0,0.09816915]
[1763081420936,0.2018088,99104.0,99100.0,0.09816915]
[1763081421139,0.20181092,99103.0,99100.0,0.09816915]
[1763081421279,0.01008497,99119.0,99100.0,0.09816915]
[1763081421280,0.20179791,99110.0,99100.0,0.09816915]
[1763081421491,0.52480031,99108.0,99100.0,0.09816915]
[1763081421709,0.323,99108.0,99100.0,0.09816915]
[1763081422154,0.323,99108.0,99103.0,0.20180971]
[1763081422403,0.323,99118.0,99103.0,0.20180946]
[1763081422630,0.323,99118.0,99102.0,0.20181227]
[1763081422631,0.01871519,99117.0,99102.0,0.07553]
[1763081422792,0.01871519,99117.0,99100.0,0.09816915]
[1763081422793,0.22191978,99130.0,99115.0,0.09816915]
[1763081423015,0.07314805,99129.0,99116.0,0.03766]
[1763081423218,0.02807266,99128.0,99116.0,0.23944247]
[1763081423481,0.01871511,99127.0,99117.0,0.20178089]
[1763081423672,0.03949624,99126.0,99111.0,0.03766]
[1763081423831,0.01871511,99125.0,99115.0,0.09816915]
[1763081424030,0.01871511,99124.0,99115.0,0.09816915]
[1763081424226,0.01871511,99123.0,99115.0,0.29995402]
[1763081424418,0.01871511,99122.0,99116.0,0.20178307]
[1763081424621,0.02155238,99125.0,99124.0,0.04836]
[1763081424824,0.02155238,99147.0,99130.0,0.20175442]
[1763081425009,0.48075559,99168.0,99136.0,0.09816915]
[1763081425010,0.02806066,99146.0,99136.0,0.09816915]
[1763081425210,0.02806066,99145.0,99138.0,0.20173726]
[1763081425444,0.02806066,99144.0,99138.0,0.20173785]
[1763081425642,0.02806066,99143.0,99138.0,0.20173785]
[1763081425849,0.01870711,99142.0,99136.0,0.09816915]
[1763081426021,0.01870711,99141.0,99138.0,0.00013829]
[1763081426224,0.02155238,99145.0,99138.0,0.00013829]
[1763081426225,0.01870711,99140.0,99138.0,0.00013829]
[1763081426421,0.02155238,99145.0,99138.0,0.00013829]
[1763081426422,0.01870711,99139.0,99138.0,0.00013829]
[1763081428156,0.01870711,99139.0,99138.0,0.00113829]
[1763081429203,0.04290558,99139.0,99138.0,0.00213829]
[1763081429456,0.04290558,99139.0,99138.0,0.00113829]
[1763081429734,0.06445796,99139.0,99138.0,0.00113829]
[1763081429992,0.02155238,99139.0,99138.0,0.00113829]
[1763081430251,0.323,99149.0,99139.0,0.2017362]
[1763081430513,0.323,99149.0,99141.0,0.20173249]
[1763081430774,0.20172577,99145.0,99138.0,0.00113829]
[1763081431029,0.00100967,99139.0,99138.0,0.00113829]
[1763081431640,0.00100967,99139.0,99138.0,0.00013829]
[1763081432112,0.32400967,99139.0,99138.0,0.00013829]
[1763081432417,2.40762885,99139.0,99138.0,0.00013829]
[1763081432877,2.40762885,99139.0,99138.0,0.00113829]
[1763081433105,2.51545192,99139.0,99138.0,0.00113829]
[1763081433357,2.51545192,99139.0,99138.0,0.00013829]
[1763081433591,2.50911221,99139.0,99138.0,0.00013829]
[1763081433786,2.50711221,99139.0,99138.0,0.00013829]
[1763081434209,2.50911221,99139.0,99138.0,0.00013829]
[1763081434409,2.50711221,99139.0,99138.0,0.00013829]
[1763081434803,2.50611221,99139.0,99138.0,0.00013829]
[1763081434954,2.50811221,99139.0,99138.0,0.00013829]
[1763081435155,0.36621011,99139.0,99138.0,0.00013829]
[1763081435564,0.36421011,99139.0,99138.0,0.00013829]
[1763081435767,0.36621011,99139.0,99138.0,0.00013829]
[1763081435970,0.36521011,99139.0,99138.0,0.00013829]
[1763081436415,0.34468985,99139.0,99138.0,0.00013829]
[1763081436623,0.00200967,99139.0,99138.0,0.00013829]
[1763081437019,0.00100967,99139.0,99138.0,0.00013829]
[1763081437828,0.00100967,99139.0,99138.0,0.09830744]
[1763081441497,0.00100967,99139.0,99138.0,0.17156744]
[1763081441888,0.00100967,99139.0,99138.0,0.09930744]
[1763081442294,0.02128398,99139.0,99138.0,0.10030744]
[1763081442532,0.00100967,99139.0,99138.0,0.10030744]
[1763081442697,0.00100967,99139.0,99138.0,0.09830744]
[1763081442914,0.00100967,99139.0,99138.0,0.09930744]
[1763081443438,0.00100967,99139.0,99138.0,0.00113829]
[1763081444391,0.00100967,99139.0,99138.0,0.00013829]
[1763081444865,0.00100967,99139.0,99138.0,0.00113829]
[1763081445503,0.01969503,99139.0,99138.0,0.00113829]
[1763081446250,0.01969503,99139.0,99138.0,0.00013829]
[1763081446466,0.34269503,99139.0,99138.0,0.00013829]
[1763081446678,0.34369503,99139.0,99138.0,0.00013829]
[1763081446882,0.02069862,99139.0,99138.0,0.00013829]
[1763081447484,0.07624084,99139.0,99138.0,0.00013829]
[1763081447723,0.02169862,99139.0,99138.0,0.00013829]
[1763081448131,0.01969862,99139.0,99138.0,0.00013829]
[1763081448454,0.02069862,99139.0,99138.0,0.00013829]
[1763081448786,0.01969862,99139.0,99138.0,0.00013829]
[1763081452249,0.00100967,99139.0,99138.0,0.00013829]
[1763081452452,0.02128395,99139.0,99138.0,0.00013829]
[1763081452665,0.00100967,99139.0,99138.0,0.00013829]
[1763081453771,0.00100967,99139.0,99138.0,0.00113829]
[1763081453980,0.00100967,99139.0,99138.0,0.20287728]
[1763081454193,0.00100967,99139.0,99138.0,0.20187728]
[1763081454423,0.00100967,99139.0,99138.0,0.00013829]
[1763081454621,0.00100967,99139.0,99138.0,0.00113829]
[1763081455185,0.00100967,99139.0,99138.0,0.07539829]
[1763081461054,0.00100967,99139.0,99138.0,0.07339829]
[1763081461410,0.00100967,99139.0,99138.0,0.07739829]
[1763081462127,0.00100967,99139.0,99138.0,0.27913728]
[1763081462330,0.00100967,99139.0,99138.0,0.20587728]
[1763081463153,0.0002,99160.0,99159.0,0.20169626]
[1763081463323,0.0002,99160.0,99159.0,0.28387626]
[1763081463516,0.0002,99160.0,99159.0,0.33624541]
[1763081463940,0.22324467,99179.0,99161.0,0.20169219]
[1763081464144,0.04970183,99178.0,99174.0,0.09816915]
[1763081464367,0.04970183,99177.0,99176.0,0.20166169]
[1763081464511,0.04033024,99177.0,99176.0,0.20166169]
[1763081464782,0.01874319,99177.0,99176.0,0.20166169]
[1763081465007,0.02158705,99197.0,99182.0,0.20164803]
[1763081465305,0.02158705,99197.0,99177.0,0.03638]
[1763081465306,0.01008166,99190.0,99160.0,0.323]
[1763081465538,0.44066612,99180.0,99160.0,0.323]
[1763081465761,0.04969816,99179.0,99177.0,0.20165965]
[1763081465979,0.01874074,99178.0,99176.0,0.001]
[1763081466223,0.44066612,99190.0,99176.0,0.001]
[1763081466224,0.01874074,99177.0,99176.0,0.001]
[1763081466691,0.22040039,99177.0,99176.0,0.001]
[1763081466889,0.22040039,99177.0,99162.0,0.03638]
[1763081466890,0.04969872,99177.0,99162.0,0.03638]
[1763081467091,0.02158869,99177.0,99176.0,0.09816915]
[1763081467452,0.01873923,99177.0,99176.0,0.30083084]
[1763081467596,0.20163526,99189.0,99176.0,0.09816915]
[1763081467792,0.01008166,99190.0,99176.0,0.09816915]
[1763081467793,0.0600747,99188.0,99176.0,0.09816915]
[1763081467992,0.20165177,99181.0,99176.0,0.09816915]
[1763081468262,0.0187402,99180.0,99162.0,0.03638]
[1763081468476,0.22039589,99179.0,99175.0,0.09816915]
[1763081468686,0.20165569,99179.0,99175.0,0.09816915]
[1763081468885,0.2016537,99180.0,99175.0,0.09816915]
[1763081469107,0.01873109,99179.0,99175.0,0.09816915]
[1763081469319,0.2016537,99180.0,99175.0,0.09816915]
[1763081469538,0.03405673,99179.0,99152.0,0.323]
[1763081469748,0.20169737,99159.0,99141.0,0.03638]
[1763081469957,0.20170157,99157.0,99151.0,0.09816915]
[1763081470163,0.02017016,99156.0,99151.0,0.09816915]
[1763081470368,0.20171301,99151.0,99138.0,0.2017385]
[1763081470566,0.20171301,99151.0,99136.0,0.03638]
[1763081470773,0.20171837,99149.0,99136.0,0.23812172]
[1763081470951,0.2017044,99155.0,99136.0,0.23812172]
[1763081470952,0.06051358,99148.0,99137.0,0.20174052]
[1763081471154,0.201717,99149.0,99136.0,0.23826001]
[1763081471358,0.20172637,99145.0,99137.0,0.09816915]
[1763081471534,0.02017016,99156.0,99137.0,0.09816915]
[1763081471535,0.20171369,99151.0,99137.0,0.09816915]
[1763081471738,0.02017016,99156.0,99137.0,0.09816915]
[1763081471942,0.07852985,99155.0,99142.0,0.20172983]
[1763081472204,0.20170672,99154.0,99141.0,0.20173231]
[1763081472773,0.20171768,99149.0,99137.0,0.09816915]
[1763081473007,0.07852985,99155.0,99137.0,0.09816915]
[1763081473423,0.001,99151.0,99137.0,0.09816915]
[1763081473769,0.323,99162.0,99149.0,0.20171577]
[1763081473980,0.52469042,99162.0,99149.0,0.20171533]
[1763081474184,0.001,99155.0,99149.0,0.20171533]
[1763081474387,0.001,99155.0,99144.0,0.20172496]
[1763081474607,0.20171271,99151.0,99138.0,0.20173874]
[1763081475043,0.20171271,99151.0,99139.0,0.20173668]
[1763081475247,0.20171271,99151.0,99137.0,0.29990972]
[1763081475448,0.07273985,99154.0,99137.0,0.29990814]
[1763081475897,0.20173537,99140.0,99136.0,0.00013829]
[1763081476107,0.20174089,99138.0,99136.0,0.00013829]
[1763081476900,0.323,99137.0,99136.0,0.00013829]
[1763081477977,0.001,99137.0,99136.0,0.00013829]
[1763081478233,0.323,99137.0,99136.0,0.00013829]
[1763081478434,0.37547402,99137.0,99136.0,0.00013829]
[1763081478712,0.323,99137.0,99136.0,0.00013829]
[1763081479772,0.324,99137.0,99136.0,0.00013829]
[1763081479983,0.323,99138.0,99136.0,0.00013829]
[1763081480192,0.323,99138.0,99137.0,0.03339]
[1763081480399,0.02695749,99169.0,99137.0,0.13155915]
[1763081480576,0.20169076,99162.0,99146.0,0.2017207]
[1763081480785,0.20168841,99163.0,99148.0,0.20171786]
[1763081480988,0.06262562,99168.0,99152.0,0.29987949]
[1763081481197,0.20168473,99165.0,99152.0,0.29987949]
[1763081481610,0.002,99169.0,99153.0,0.23509847]
[1763081481773,0.002,99169.0,99157.0,0.20169872]
[1763081481941,0.07483351,99169.0,99159.0,0.20169568]
[1763081482142,0.07483351,99169.0,99160.0,0.20169311]
[1763081482545,0.07283351,99169.0,99160.0,0.20169311]
[1763081482745,0.323,99175.0,99161.0,0.20169027]
[1763081483063,0.323,99173.0,99153.0,0.03339]
[1763081483265,0.323,99164.0,99152.0,0.09816915]
[1763081483483,0.52468713,99164.0,99152.0,0.09816915]
[1763081483678,0.323,99162.0,99152.0,0.09816915]
[1763081483867,0.2016909,99162.0,99152.0,0.09816915]
[1763081484270,0.27432819,99162.0,99152.0,0.09816915]
[1763081484481,0.323,99166.0,99152.0,0.09816915]
[1763081484678,0.323,99166.0,99158.0,0.20169723]
[1763081484917,0.323,99166.0,99162.0,0.20168965]
[1763081485092,0.20166431,99175.0,99162.0,0.20168965]
[1763081485314,0.323,99174.0,99163.0,0.03339]
[1763081485512,0.20168296,99166.0,99154.0,0.20170581]
[1763081485695,0.20165762,99178.0,99132.0,0.30262636]
[1763081485893,0.323,99171.0,99160.0,0.20169365]
[1763081486117,0.323,99171.0,99150.0,0.20171406]
[1763081486317,0.20169488,99160.0,99142.0,0.07055]
[1763081486676,0.00036232,99153.0,99146.0,0.20172223]
[1763081486879,0.00036232,99153.0,99147.0,0.23511004]
[1763081487083,0.00036232,99153.0,99151.0,0.20171141]
[1763081488986,0.00036232,99153.0,99152.0,0.09916915]
[1763081489395,0.00036232,99153.0,99152.0,0.001]
[1763081489818,0.36374,99153.0,99152.0,0.001]
[1763081490349,0.56544847,99153.0,99152.0,0.001]
[1763081490767,0.04074,99153.0,99137.0,0.09816915]
[1763081490973,0.323,99149.0,99137.0,0.09816915]
[1763081491390,0.323,99147.0,99137.0,0.09816915]
[1763081491586,0.323,99147.0,99100.0,0.00999999]
[1763081491843,0.20180788,99105.0,99103.0,0.00013832]
[1763081492191,0.01009183,99090.0,99063.0,0.12693524]
[1763081492406,0.323,99073.0,99063.0,0.0004591]
[1763081492528,0.323,99064.0,99063.0,0.0004591]
[1763081493137,0.33315222,99064.0,99063.0,0.0004591]
[1763081493567,0.37657096,99064.0,99063.0,0.0004591]
[1763081495146,0.37757096,99064.0,99063.0,0.0004591]
[1763081495484,0.37657096,99064.0,99063.0,0.0004591]
[1763081495692,0.37757096,99064.0,99063.0,0.0004591]
[1763081496115,0.37657096,99064.0,99063.0,0.0004591]
[1763081496328,0.37757096,99064.0,99063.0,0.0004591]
[1763081496705,0.37657096,99064.0,99063.0,0.0004591]
[1763081496905,0.37757096,99064.0,99063.0,0.0004591]
[1763081497222,2.37757096,99064.0,99063.0,0.0004591]
[1763081497591,2.37757096,99064.0,99063.0,1e-08]
[1763081498060,2.37857096,99064.0,99063.0,1e-08]
[1763081498356,2.37657096,99064.0,99063.0,1e-08]
[1763081498509,2.37757096,99064.0,99063.0,1e-08]
[1763081498709,2.37857096,99064.0,99063.0,1e-08]
[1763081498921,2.37757096,99064.0,99063.0,1e-08]
[1763081499121,2.47705432,99064.0,99063.0,1e-08]
[1763081499536,2.47605432,99064.0,99063.0,1e-08]
[1763081499738,2.47705432,99064.0,99063.0,1e-08]
[1763081499989,2.47605432,99064.0,99063.0,1e-08]
[1763081500338,2.37857096,99064.0,99063.0,1e-08]
[1763081500865,2.37757096,99064.0,99063.0,1e-08]
[1763081501211,2.37857096,99064.0,99063.0,1e-08]
[1763081501394,2.37757096,99064.0,99063.0,1e-08]
[1763081501694,0.2150419,99064.0,99063.0,1e-08]
[1763081501867,0.05450959,99064.0,99063.0,0.00189116]
[1763081502054,0.37750959,99064.0,99063.0,0.00189116]
[1763081502252,0.37550959,99064.0,99063.0,0.00189116]
[1763081502491,0.05250959,99064.0,99063.0,0.00189116]
[1763081502711,0.002,99064.0,99063.0,0.20378288]
[1763081502901,0.002,99064.0,99063.0,0.00189116]
[1763081503123,0.001,99064.0,99063.0,0.00189116]
[1763081503329,0.52588968,99064.0,99063.0,0.00189116]
[1763081503533,0.0830834,99064.0,99063.0,0.00189116]
[1763081503691,0.01030584,99064.0,99063.0,0.00189116]
[1763081504107,0.56835531,99041.0,99040.0,0.0004]
[1763081504329,0.56835531,99041.0,99000.0,0.0004]
[1763081504330,0.323,99019.0,99000.0,0.0004]
[1763081504516,0.323,99012.0,99005.0,0.09816915]
[1763081505032,0.20201816,99001.0,99000.0,0.00053781]
[1763081505350,0.323,99001.0,99000.0,0.00053781]
[1763081506399,0.20201619,99002.0,99000.0,0.00053781]
[1763081506830,0.00927286,99001.0,99000.0,0.00053781]
[1763081507072,0.11422231,99001.0,99000.0,0.00053781]
[1763081508045,0.11622231,99001.0,99000.0,0.00053781]
[1763081508254,0.01127286,99001.0,99000.0,0.00053781]
[1763081508825,0.0546916,99001.0,99000.0,0.00053781]
[1763081510432,0.3776916,99001.0,99000.0,0.00053781]
[1763081510775,0.3776916,99001.0,99000.0,0.00217154]
[1763081510980,0.3776916,99001.0,98960.0,0.0004]
[1763081510981,0.01010203,98990.0,98960.0,0.0004]
[1763081511191,0.20209169,98965.0,98961.0,0.09816915]
[1763081511441,0.15086075,98989.0,98960.0,0.0004]
[1763081511442,0.323,98961.0,98960.0,0.0004]
[1763081512950,0.323,98969.0,98960.0,0.0004]
[1763081513187,0.323,98966.0,98960.0,0.0004]
[1763081513348,0.323,98966.0,98961.0,0.20209981]
[1763081513915,0.323,98966.0,98960.0,0.0004]
[1763081514142,0.323,98961.0,98960.0,0.0004]
[1763081514719,0.36641874,98979.0,98960.0,0.0004]
[1763081514934,0.323,98972.0,98961.0,0.20209867]
[1763081515102,0.20208449,98969.0,98960.0,0.0004]
[1763081515282,0.52508253,98970.0,98960.0,0.0004]
[1763081515712,0.20208765,98967.0,98960.0,0.0004]
[1763081515878,0.52508253,98970.0,98960.0,0.0004]
[1763081516079,0.36675764,98970.0,98962.0,0.2020966]
[1763081516388,0.04375764,98970.0,98962.0,0.2020966]
[1763081516590,0.323,98973.0,98962.0,0.2020966]
[1763081516591,0.04341874,98969.0,98962.0,0.20115608]
[1763081516815,0.04341874,98969.0,98968.0,0.00083036]
[1763081517065,0.04341874,98972.0,98968.0,0.00083036]
[1763081517286,0.04341874,98972.0,98961.0,0.20209836]
[1763081517492,0.36641874,98970.0,98960.0,0.0004]
[1763081518225,0.36641874,98970.0,98969.0,0.04407]
[1763081518226,0.323,98970.0,98969.0,0.04407]
[1763081518432,0.00013755,98990.0,98969.0,0.04407]
[1763081518634,0.01849856,98989.0,98964.0,0.09816915]
[1763081518840,0.03942838,98988.0,98973.0,0.20207436]
[1763081519042,0.02695749,98982.0,98972.0,0.20207641]
[1763081519243,0.0760045,98981.0,98979.0,0.20206219]
[1763081519453,0.09246575,98980.0,98964.0,0.09816915]
[1763081519652,0.09246575,98980.0,98976.0,0.2020687]
[1763081519653,0.02664821,98978.0,98976.0,0.2020687]
[1763081519952,0.04904701,98977.0,98976.0,0.2020687]
[1763081521082,0.05661653,98977.0,98972.0,0.001]
[1763081521221,0.62185592,98973.0,98972.0,0.001]
[1763081521405,0.61754106,98973.0,98972.0,0.001]
[1763081521622,0.56851855,98961.0,98960.0,0.0004]
[1763081521868,0.65317114,98961.0,98960.0,0.0004]
[1763081522196,0.67097393,98961.0,98960.0,0.0004]
[1763081522407,0.61756556,98961.0,98960.0,0.0004]
[1763081522612,0.71573471,98961.0,98960.0,0.0004]
[1763081522822,0.81421807,98961.0,98960.0,0.0014]
[1763081522999,0.81421807,98961.0,98960.0,1e-08]
[1763081523000,2.81421807,98961.0,98960.0,1e-08]
[1763081523249,0.56854306,98949.0,98940.0,0.0004]
[1763081523453,0.65319244,98949.0,98940.0,0.0004]
[1763081523654,0.69882301,98949.0,98940.0,0.0004]
[1763081524400,0.66335809,98949.0,98940.0,0.0004]
[1763081524607,0.20214066,98941.0,98940.0,0.0004]
[1763081524809,0.61760641,98941.0,98940.0,0.0004]
[1763081525492,0.644291,98941.0,98940.0,0.0004]
[1763081525633,0.71608977,98941.0,98940.0,0.0004]
[1763081525838,0.61760641,98941.0,98940.0,0.0004]
[1763081526041,2.61760641,98941.0,98940.0,0.0004]
[1763081527386,0.56860027,98921.0,98920.0,0.0004]
[1763081527626,0.61764728,98921.0,98920.0,0.0004]
[1763081530428,2.61764728,98921.0,98920.0,0.0004]
[1763081530629,2.71613064,98921.0,98920.0,0.0004]
[1763081530980,2.71613064,98921.0,98920.0,0.00247691]
[1763081531509,0.04341874,98878.0,98864.0,0.09816915]
[1763081531746,0.01011122,98900.0,98864.0,0.09816915]
[1763081531747,0.04341874,98885.0,98864.0,0.09816915]
[1763081531948,0.01011122,98900.0,98877.0,0.20227029]
[1763081531949,0.36641874,98891.0,98877.0,0.20227029]
[1763081532147,0.04341874,98889.0,98879.0,0.09816915]
[1763081532353,0.323,98892.0,98890.0,0.0007794]
[1763081532560,0.02672479,98915.0,98891.0,0.04097]
[1763081532736,0.323,98919.0,98891.0,0.24321082]
[1763081532737,0.00013733,98892.0,98891.0,0.24321082]
[1763081533325,0.00013733,98892.0,98880.0,0.01011326]
[1763081533527,0.04341874,98890.0,98880.0,0.20226525]
[1763081533786,0.04341874,98890.0,98872.0,0.09816915]
[1763081533787,0.00929374,98889.0,98878.0,0.202269]
[1763081533984,0.00929374,98888.0,98872.0,0.09816915]
[1763081534302,0.00929361,98887.0,98883.0,0.20225816]
[1763081534452,0.04341874,98891.0,98882.0,0.20226128]
[1763081534652,0.02788017,98890.0,98884.0,0.20225719]
[1763081534856,0.00929339,98889.0,98863.0,0.06422]
[1763081535061,0.20225265,98887.0,98874.0,0.20227764]
[1763081535261,0.44233291,98884.0,98863.0,9e-05]